Cogmind - Beta 16 @@@ ROGUE MODE // 2025.12.10 @ 19:10:01 Player: ClassActJerk Result: Self-destructed Performance ------------- Evolutions (2) 1000 Regions Visited (4) 800 Robots Destroyed (18) 90 Value Destroyed (517) 517 Prototype IDs (0) 0 Alien Tech Used (0) 0 Bonus (118) 118 TOTAL SCORE: 2525 Bonus ------- Follower Combat Kills 118 Cogmind --------- Core Integrity 177/550 Matter 300/300 Energy 100/100 System Corruption 0% Temperature Cool (0) Movement Core (1350) Ox26 Location -8/Materials Parts ------- > --- POWER (1) -------- (None) > --- PROPULSION (4) --- (None) > --- UTILITY (2) ------ Huge Storage Unit > --- WEAPON (4) ------- (None) > --- INVENTORY (25) --- Light Armor Plating Hardened Medium Armor Plating Peak State ------------ > --- POWER ------------ Ion Engine > --- PROPULSION ------- Improved Hover Unit Improved Hover Unit Improved Hover Unit > --- UTILITY ---------- Huge Storage Unit Medium Matter Pod > --- WEAPON ----------- Small Laser Small Laser Light Assault Rifle > --- INVENTORY -------- Light Ion Engine Hover Unit Hover Unit Improved Hover Unit Light Armor Plating Hardened Medium Armor Plating Assault Rifle Light Assault Rifle [Rating: 13] Favorites ----------- Power Ion Engine Engine Ion Engine Propulsion Improved Hover Unit Treads Light Treads Hover Unit Improved Hover Unit Utility Huge Storage Unit Storage Huge Storage Unit Weapon Light Assault Rifle Energy Gun Small Laser Ballistic Gun Light Assault Rifle Build | -11 -10 -9 -9 -8 ------- Run | Yrd Mat Mat Min Mat Slots Evolved 4 | . . 2 . 2 Power . | . . . . . Propulsion 2 | . . 1 . 1 Utility . | . . . . . Weapon 2 | . . 1 . 1 Parts Attached 19 | 6 4 5 2 2 Power 2 | 1 . . 1 . Engine 2 | 1 . . 1 . Core . | . . . . . Reactor . | . . . . . Propulsion 8 | 2 2 2 1 1 Treads 2 | 2 . . . . Leg . | . . . . . Wheel . | . . . . . Hover 6 | . 2 2 1 1 Flight . | . . . . . Utility 3 | 1 2 . . . Device . | . . . . . Storage 3 | 1 2 . . . Processor . | . . . . . Hackware . | . . . . . Protection . | . . . . . Artifact . | . . . . . Weapon 6 | 2 . 3 . 1 Energy Gun 2 | 2 . . . . Energy Cannon . | . . . . . Ballistic Gun 4 | . . 3 . 1 Ballistic Cannon . | . . . . . Launcher . | . . . . . Special Weapon . | . . . . . Impact Weapon . | . . . . . Slashing Weapon . | . . . . . Piercing Weapon . | . . . . . Special Melee Weapon . | . . . . . Unidentified Prototypes . | . . . . . Parts Lost 14 | . . 4 . 10 Power 2 | . . 1 . 1 Propulsion 5 | . . 1 . 4 Utility 1 | . . . . 1 Weapon 6 | . . 2 . 4 Highest Loss Streak 8 | . . 2 . 8 To Critical Strikes . | . . . . . Average Backups 4 | 1 4 6 3 2 Power . | . 1 1 . . Propulsion 1 | . 1 2 1 . Utility 1 | . . 1 2 2 Weapon . | . 1 1 . . Tool/Special . | . . . . . Unused Backups 2 | . . . . 2 Power . | . . . . . Propulsion . | . . . . . Utility 2 | . . . . 2 Weapon . | . . . . . Tool/Special . | . . . . . Average Slot Usage (%) 92 | . 86 99 99 46 Engine 11 | . 14 10 11 3 Treads 3 | . 15 . . . Hover 26 | . 12 32 32 13 Storage 20 | . 15 22 22 15 Energy Gun 11 | . 28 16 . . Ballistic Gun 18 | . . 15 33 13 Peak Build Rating 13 | 6 10 13 11 12 Average Rating 10 | 2 7 12 10 6 On Entrance 7 | . 6 10 9 11 Avg Prop Armor Cover (%) . | . . . . . Naked Turns . | . . . . . Heaviest Build 91 | 12 89 91 89 89 Greatest Support 40 | 40 40 21 20 26 Greatest Overweight (x) 28 | 1 6 6 4 28 Average Overweight (x) 2 | . . 4 4 8 Largest Inventory Capacity 25 | 8 25 25 25 25 Average Capacity 21 | 6 10 25 25 25 Most Carried 8 | 5 8 8 4 3 Average Carried 4 | 1 4 6 3 2 Final Capacity 25 | 8 25 25 25 25 Final Carried 8 | 2 8 5 3 2 Class Distribution -------------------- 69% | Gunner 30% | Mutant Dominant Class ---------------- Mutant | -10/Materials Gunner | -9/Materials Gunner | -9/Mines Mutant | -8/Materials Resources | -11 -10 -9 -9 -8 ----------- Run | Yrd Mat Mat Min Mat Matter Collected 531 | 176 156 174 25 . Remotely . | . . . . . Salvage Created 570 | . 172 242 42 114 Parts 44 | . 14 23 1 6 Haulers Intercepted . | . . . . . Recyclers Shooed . | . . . . . Parts Field Recycled . | . . . . . Retrieved Matter . | . . . . . Parts Self-Destructed . | . . . . . Prevented . | . . . . . Parts Restored . | . . . . . Kills | -11 -10 -9 -9 -8 ------- Run | Yrd Mat Mat Min Mat Combat Hostiles Destroyed 14 | . 3 8 1 2 Guns 14 | . 3 8 1 2 Classes Destroyed 6 | . 3 3 . . Builder 2 | . 1 1 . . Watcher 2 | . 1 . . 1 Swarmer 4 | . . 4 . . Grunt 8 | . 3 2 1 2 Duelist 1 | . . 1 . . Sentry 1 | . . 1 . . Best Kill Streak 5 | . 2 5 1 3 Combat Bots Only 4 | . 1 4 1 2 Max Kills in Single Turn 2 | . 1 2 1 1 Gunslinging . | . . . . . Exploded . | . . . . . Melee . | . . . . . Uniques/NPCs Destroyed . | . . . . . Combat | -11 -10 -9 -9 -8 -------- Run | Yrd Mat Mat Min Mat Hostile Shots Fired 144 | . 13 66 . 65 Missed 36 | . 5 16 . 15 Hits 108 | . 8 50 . 50 Melee 3 | . . 3 . . Projectile 105 | . 8 47 . 50 Critical Strikes 3 | . 1 1 . 1 Damage Taken 1544 | . 103 618 . 823 Core 469 | . 12 84 . 373 Absorbed by Shields . | . . . . . Core Remaining (%) 91 | 100 95 . 79 . Volleys Fired 45 | . 14 18 1 12 Largest 3 | . 2 3 3 3 Hottest 100 | . 80 100 60 60 Shots Fired 102 | . 28 52 3 19 Gun 102 | . 28 52 3 19 Cannon . | . . . . . Launcher . | . . . . . Special . | . . . . . Kinetic 63 | . . 41 3 19 Thermal 39 | . 28 11 . . Explosive . | . . . . . Electromagnetic . | . . . . . Robot Hit Streak 12 | . 11 12 2 5 Robot Miss Streak 7 | . 2 7 . 1 Penetration Max . | . . . . . Secondary Targets 4 | . . 2 . 2 Max Gunslinging Chain 1 | . . 1 . 1 Shots Hit Robots 62 | . 18 30 1 13 Core Hits 36 | . 10 16 1 9 Critical Kills . | . . . . . Critical Parts Destroyed . | . . . . . Critical Strikes . | . . . . . Melee Attacks . | . . . . . Impact . | . . . . . Slashing . | . . . . . Piercing . | . . . . . Sneak Attacks . | . . . . . Combat Hostiles . | . . . . . Follow-up Attacks . | . . . . . Damage Inflicted 715 | . 201 335 14 165 Guns 715 | . 201 335 14 165 Cannons . | . . . . . Explosions . | . . . . . Melee . | . . . . . Ramming . | . . . . . Kinetic 439 | . . 260 14 165 Thermal 276 | . 201 75 . . Explosive . | . . . . . Electromagnetic . | . . . . . Impact . | . . . . . Slashing . | . . . . . Piercing . | . . . . . Highest Corruption . | . . . . . Average Corruption . | . . . . . Corruption Purged . | . . . . . Corruption Blocked . | . . . . . Overload Shots . | . . . . . Overflow Damage . | . . . . . Projectiles . | . . . . . Explosions . | . . . . . Melee . | . . . . . Knockbacks . | . . . . . Impact . | . . . . . Kinetic . | . . . . . Secondary . | . . . . . Self-Inflicted Damage . | . . . . . Shots . | . . . . . Rammed . | . . . . . Targets Rammed . | . . . . . Kicked . | . . . . . Crushed . | . . . . . Highest Temperature 126 | . 90 126 20 70 Average Temperature 34 | . 33 37 15 31 Received Heat Transfer 402 | . 75 138 . 189 Siege Activations . | . . . . . Martial Activations . | . . . . . Shielding Activations . | . . . . . Robots Disrupted . | . . . . . Combat Hostiles . | . . . . . Robots Corrupted . | . . . . . Combat Hostiles . | . . . . . Parts Fried . | . . . . . Impact Corruptions . | . . . . . Robots Melted . | . . . . . Combat Hostiles . | . . . . . Parts Melted 1 | . . 1 . . Heat Transferred 625 | . 450 175 . . Parts Sabotaged . | . . . . . Parts Stolen . | . . . . . Parts Stripped . | . . . . . Power Chain Reactions . | . . . . . Alert | -11 -10 -9 -9 -8 ------- Run | Yrd Mat Mat Min Mat Maximum Alert Level . | . . . . . Low Security (%) 100 | 100 100 100 100 100 Level 1 . | . . . . . Level 2 . | . . . . . Level 3 . | . . . . . Level 4 . | . . . . . Level 5 . | . . . . . High Security . | . . . . . Max Security . | . . . . . Peak Influence 114 | . 50 114 57 54 Initial 30 | . . . 30 . Average 11 | . 11 12 10 12 Influence Increases 542 | . 92 196 137 117 Destroy 0b10 Robot/C 400 | . 60 160 100 80 Destroy 0b10 Robot/NC 25 | . 10 5 5 5 Destroy Leader 84 | . 22 30 20 12 Allied During Kill 17 | . . . 12 5 Disable Machine 15 | . . . . 15 Destroy Structure 1 | . . 1 . . Influence Decreases 542 | . 92 118 215 117 Entered New Map 48 | . . . 48 . Time Decay 371 | . 92 98 147 34 Lost Part 83 | . . 20 . 63 Lost Ally 40 | . . . 20 20 Squads Dispatched 5 | . 3 1 . 1 Investigation . | . . . . . Extermination . | . . . . . Reinforcement 5 | . 3 1 . 1 Assault . | . . . . . Garrison . | . . . . . Intercept . | . . . . . Searches Triggered . | . . . . . Construction Impeded . | . . . . . Haulers Reinforced . | . . . . . Active Scanning Responses . | . . . . . Cargo Convoy Interrupts . | . . . . . Stealth | -11 -10 -9 -9 -8 --------- Run | Yrd Mat Mat Min Mat Distress Signals 2 | . . 1 . 1 Communications Jammed . | . . . . . Distress Signals . | . . . . . Times Spotted 36 | . 11 16 2 7 Peak Tracking Total 5 | . 3 5 1 4 Tactical Retreats . | . . . . . Traps | -11 -10 -9 -9 -8 ------- Run | Yrd Mat Mat Min Mat Traps Triggered . | . . . . . Indirectly . | . . . . . Trap Hack Attempts . | . . . . . Triggered . | . . . . . Disarmed . | . . . . . Reprogrammed . | . . . . . Reused . | . . . . . Traps Extracted . | . . . . . Installed . | . . . . . Triggered . | . . . . . Machines | -11 -10 -9 -9 -8 ---------- Run | Yrd Mat Mat Min Mat Machines Disabled 2 | . . 1 . 1 Max in Single Turn 1 | . . 1 . . Machines Repaired . | . . . . . Machines Dismantled . | . . . . . Machines Sabotaged . | . . . . . Overloaded Fab Kills . | . . . . . Hacking | -11 -10 -9 -9 -8 --------- Run | Yrd Mat Mat Min Mat Machines Accessed . | . . . . . Terminals . | . . . . . Fabricators . | . . . . . Repair Stations . | . . . . . Recycling Units . | . . . . . Scanalyzers . | . . . . . Garrison Access . | . . . . . Total Hacks . | . . . . . Successful . | . . . . . Failed . | . . . . . Catastrophic . | . . . . . Database Lockouts . | . . . . . Manual . | . . . . . Terminals . | . . . . . Fabricators . | . . . . . Repair Stations . | . . . . . Recycling Units . | . . . . . Scanalyzers . | . . . . . Garrison Access . | . . . . . Terminal Hacks . | . . . . . Fabricator Hacks . | . . . . . Repair Station Hacks . | . . . . . Recycling Unit Hacks . | . . . . . Scanalyzer . | . . . . . Garrison Access Hacks . | . . . . . Unauthorized Hacks . | . . . . . Terminals . | . . . . . Fabricators . | . . . . . Repair Stations . | . . . . . Recycling Units . | . . . . . Scanalyzers . | . . . . . Garrison Access . | . . . . . Data Cores Recovered . | . . . . . Used . | . . . . . Hacking Detections . | . . . . . Full Trace Events . | . . . . . Feedback Events . | . . . . . Feedback Blocked . | . . . . . Robot Schematics Acquired . | . . . . . Robots Built . | . . . . . Authchips . | . . . . . Time . | . . . . . Total Robot Build Rating . | . . . . . Part Schematics Acquired . | . . . . . Parts Built . | . . . . . Authchips . | . . . . . Time . | . . . . . Total Part Build Rating . | . . . . . Part Studies Acquired . | . . . . . Parts Repaired . | . . . . . Time . | . . . . . Parts Recycled . | . . . . . Recycled Matter . | . . . . . Retrieved Matter . | . . . . . Retrieved Components . | . . . . . Parts Scanalyzed . | . . . . . Part Schematics Acquired . | . . . . . Parts Damaged . | . . . . . Bothacking | -11 -10 -9 -9 -8 ------------ Run | Yrd Mat Mat Min Mat Used RIF Installer . | . . . . . Robots Hacked . | . . . . . Non-combat . | . . . . . Combat . | . . . . . Robot Hacks Applied . | . . . . . Relay Couplers Released . | . . . . . Fabnet Peak Effective % . | . . . . . Robots Rewired . | . . . . . Allies Hacked . | . . . . . Hacks Repelled . | . . . . . Allies | -11 -10 -9 -9 -8 -------- Run | Yrd Mat Mat Min Mat Total Allies 2 | . . . 2 . Largest Group 2 | . . . 2 1 Highest-Rated Group 40 | . . . 40 31 Highest-Rated Ally 31 | . . . 31 31 Total Orders . | . . . . . Ally Attacks 30 | . . . 13 17 Total Damage 429 | . . . 225 204 Kills 7 | . . . 5 2 Allies Corrupted . | . . . . . Allies Melted . | . . . . . Intel | -11 -10 -9 -9 -8 ------- Run | Yrd Mat Mat Min Mat Active Infowar (turns) . | . . . . . Robot Analysis Total . | . . . . . Derelict Logs Recovered . | . . . . . Drone Launches . | . . . . . Drone Recoveries . | . . . . . Exploration | -11 -10 -9 -9 -8 ------------- Run | Yrd Mat Mat Min Mat Turns Passed 2121 | 77 461 682 765 136 Spaces Moved 865 | 33 368 199 244 21 Core 20 | 15 . . . 5 Treads 133 | 18 115 . . . Legs . | . . . . . Wheels . | . . . . . Hover 712 | . 253 199 244 16 Flight . | . . . . . Fastest Speed 50 | 50 56 292 292 228 Average Speed 211 | 114 105 293 292 507 Slowest Speed 1450 | 160 416 416 292 1450 Overloaded Moves . | . . . . . Propulsion Burnouts . | . . . . . Robots Hopped . | . . . . . Potential Cave-ins . | . . . . . Cave-ins Triggered . | . . . . . Exploration Rate (%) 26 | 3 59 25 41 6 Regions Visited 4 Branch Regions 1 Pre-discovered Areas . | . . . . . Known Exits Taken . | . . . . . Unknown Exits Taken 4 | 1 1 1 1 . Scrap Searched 1 | . . . 1 . Spaces Dug . | . . . . . Terrain Destroyed . | . . . . . Melee . | . . . . . Projectile . | . . . . . AOE . | . . . . . Terrain Rammed . | . . . . . Walls Destroyed . | . . . . . Machines Disabled . | . . . . . Actions | -11 -10 -9 -9 -8 --------- Run | Yrd Mat Mat Min Mat Total 1087 | 71 418 266 296 36 Wait 140 | 28 20 42 50 . Move 861 | 32 367 198 243 21 Hop . | . . . . . Pick Up 18 | 5 10 2 . 1 Fast Attach 3 | 3 . . . . Attach 15 | 3 3 5 2 2 Detach . | . . . . . Swap 1 | . 1 . . . Drop 4 | . 3 1 . . Fire 45 | . 14 18 1 12 Melee . | . . . . . Ram . | . . . . . Kick . | . . . . . Crush . | . . . . . Escape Stasis . | . . . . . Rewire . | . . . . . Trap . | . . . . . Miscellaneous . | . . . . . Route ------- -11/Scrapyard -10/Materials (discovered 3 exits: [*Mat x2] / [*Min]) -9/Materials -9/Mines -8/Materials History --------- Turn | Location | Event 33 | -11/Scrapyard | Discovered new exit (range 15) 78 | -11/Scrapyard | Entered Materials 307 | -10/Materials | Build established: Mutant 335 | -10/Materials | Discovered new exit (range 12) 398 | -10/Materials | Discovered new exit (range 12) 518 | -10/Materials | Discovered new exit (range 3) 539 | -10/Materials | Entered another Materials area 539 | -9/Materials | Evolved 2 slots: Propulsion x1, Weapon x1 846 | -9/Materials | Build established: Gunner 1162 | -9/Materials | Discovered new exit (range 7) 1221 | -9/Materials | Entered Mines 1963 | -9/Mines | Discovered new exit (range 5) 1986 | -9/Mines | Entered Materials 1986 | -8/Materials | Accompanied by 1 ally 1986 | -8/Materials | Evolved 2 slots: Propulsion x1, Weapon x1 1991 | -8/Materials | Led the pair of lost Derelicts to an unsafe place 2069 | -8/Materials | Lost 8 parts (1p4n3w) 2112 | -8/Materials | Core integrity fell below 50% 2122 | -8/Materials | Self-destructed Last Messages --------------- 02043_ Critical hit (Burn: +37). 02047_ G-47 Trooper destroyed. 02055_ Slug penetrates E6-SDQ(g). 02055_ E6-SDQ(g) destroyed. 02061_ Penetrated by Slug. 02061_ A-02 Transporter destroyed. 02065_ Penetrated by Slug. 02080_ Minigun destroyed. 02083_ Penetrated by Slug. 02083_ Med. Matter Pod destroyed. 02092_ Penetrated by Slug. 02097_ K-01 Serf collects debris. 02099_ Penetrated by Slug. 02101_ K-01 Serf collects debris. 02108_ Penetrated by Slug. 02109_ K-01 Serf collects debris. 02111_ Penetrated by Slug. 02112_ K-01 Serf collects debris. 02120_ Penetrated by Slug. 02121_ K-01 Serf collects debris. Map ----- +----------------------------------------------------+ | ?????????????????????????????????????????????????? | | ?????????????????????????????????????????????????? | | ?????????????????????????????????????????????????? | | ?????????????????????????????????????????????????? | | ?????????????????????????????????????????????????? | | ?????????????????????????????????????????????????? | | ?????????????????????????????????????????????????? | | ?????????????????????????????????????????????????? | | ?????????????????????????????????????????????????? | | ?????????????????? ????????????????????????????? | | ?????????????????# ????????????????????????????? | | ?????????????????# ????????????????????????????? | | ?????????????##### ????????????????????????????? | | ????????????? #???????????????????????????? | | ????????????? #???????????????????????????? | | ????????????? = #???????????????????????????? | | ?????????????""[%* #???????????????????????????? | | ?????????? ??""" ##########??????????????????? | | ?????????# " a #??????????????????? | | ?????????+ "" =[= #??????????????????? | | ?????????# " =[%]]] #??????????????????? | | ?????????? =*]]] #??????????????????? | | ???????????? !]] #??????????????????? | | ????????????????# #??????????????????? | | ????????????????# k = #??????????????????? | | ????????????????# @=! #??????????????????? | | ????????????????# !!k/ #??????????????????? | | ????????????????# """ % h!#??????????????????? | | ????????????????# """ *%#??????????????????? | | ?????????????#### """ =*%% ???????????????? | | ?????????????# =%[ ?????????????? | | ?????????????# ????????????? | | ?????????????# #???????????? | | ?????????????# #???????????? | | ?????????????# ############+##########???????????? | | ?????????????# ??????????????????????????????????? | | ?????????????# ??????????????????????????????????? | | ?????????????# ??????????????????????????????????? | | ?????????????# ??????????????????????????????????? | | ?????????????# ??????????????????????????????????? | | ?????????????#???????????????????????????????????? | | ?????????????????????????????????????????????????? | | ?????????????????????????????????????????????????? | | ?????????????????????????????????????????????????? | | ?????????????????????????????????????????????????? | | ?????????????????????????????????????????????????? | | ?????????????????????????????????????????????????? | | ?????????????????????????????????????????????????? | | ?????????????????????????????????????????????????? | | ?????????????????????????????????????????????????? | +----------------------------------------------------+ Best States ------------- Heat Dissipation 31 Energy Generation 10 Energy Capacity 250 Matter Stores 400 Matter Capacity 400 Sight Range 16 Terrain Scan Density 10 Evasion (%) 53 Recoil Reduction 2 Item Schematics ----------------- None Robot Schematics ------------------ None Fabricated ------------ Nothing Repaired ---------- Nothing Studied --------- None Alien Tech Used ----------------- None Achievements -------------- None Challenges ------------ None Game ------ Seed ExoskeletonTacticalCloak Manual? 0 Play Time 00:12:32 Cumulative 40.1 hours Start 2025.12.10 @ 18:00:46 End 2025.12.10 @ 19:10:01 Sessions 1 Manual Loads 0 Difficulty Rogue Special Mode None Game No. 123 Rogue 123 Adventurer 0 Explorer 0 Win Type - Total 0 Types 0/0/0/0/0/0/0/0/0/0 Lore% 16 Gallery% 27 Achievement% 20 Wizard Run 0 Options --------- Layout 1 ASCII 0 Keyboard 0 Movement Mouse Keybinds 0 Fullscreen 1 Font 24/Terminus Map View 50x35 Zoom Use 0% Tactical HUD 1 Map Filters NONE Filters NONE Steam 1 RUN: e1f576f4-9090-40a2-89ea-f58aef97fa56